fUSD/lending_fUSD_20250112
["ID","MTS","AMOUNT","RATE_DAILY","PERIOD"]
[348631882,1736691042655,-500.0,9.97e-05,2]
[348631883,1736691042664,-500.0,9.97e-05,2]
[348631884,1736691042674,-675.02,9.97e-05,2]
[348631886,1736691042683,-500.0,9.97e-05,2]
[348631887,1736691042691,-500.0,9.97e-05,2]
[348631888,1736691042701,-500.0,9.97e-05,2]
[348631889,1736691042712,-500.0,9.97e-05,2]
[348631890,1736691042721,-564.97,9.97e-05,2]
[348631891,1736691042730,-627.98,9.97e-05,2]
[348631892,1736691042739,-500.0,9.97e-05,2]
[348631893,1736691042749,-500.0,9.97e-05,2]
[348631894,1736691042759,-511.85,9.97e-05,2]
[348631895,1736691042769,-297.04014465,9.97e-05,2]
[348631896,1736691042778,-500.0,9.97e-05,2]
[348631897,1736691042787,-500.0,9.97e-05,2]
[348631898,1736691042796,-500.0,9.97e-05,2]
[348631899,1736691042804,-740.19,9.97e-05,2]
[348631900,1736691042814,-500.0,9.97e-05,2]
[348631901,1736691042823,-500.0,9.97e-05,2]
[348631903,1736691042833,-500.0,9.97e-05,2]
[348631904,1736691042842,-500.0,9.97e-05,2]
[348631905,1736691042851,-500.0,9.97e-05,2]
[348631906,1736691042860,-500.0,9.97e-05,2]
[348631908,1736691042869,-500.0,9.97e-05,2]
[348631911,1736691042878,-500.0,9.97e-05,2]
[348631914,1736691042887,-434.40653801,9.97e-05,2]
[348631917,1736691042898,-500.0,9.97e-05,2]
[348631918,1736691042908,-500.0,9.97e-05,2]
[348631919,1736691042918,-500.0,9.97e-05,2]
[348631920,1736691042927,-500.0,9.97e-05,2]
[348631921,1736691042936,-800.91,9.97e-05,2]
[348631922,1736691042945,-500.0,9.97e-05,2]
[348631923,1736691042954,-600.8,9.97e-05,2]
[348631924,1736691042965,-500.0,9.97e-05,2]
[348631925,1736691042974,-172.28816532,9.97e-05,2]
[348631926,1736691042983,-567.6,9.97e-05,2]
[348631928,1736691042992,-823.24,9.97e-05,2]
[348631930,1736691043001,-501.60866637,9.97e-05,2]
[348631931,1736691043010,-504.56988945,9.97e-05,2]
[348631933,1736691043019,-500.0,9.97e-05,2]
[348631935,1736691043028,-500.0,9.97e-05,2]
[348631936,1736691043037,-500.0,9.97e-05,2]
[348631937,1736691043047,-512.12964996,9.97e-05,2]
[348631938,1736691043056,-500.0,9.97e-05,2]
[348631939,1736691043064,-500.0,9.97e-05,2]
[348631940,1736691043074,-500.0,9.97e-05,2]
[348631941,1736691043083,-500.0,9.97e-05,2]
[348631942,1736691043092,-550.02,9.97e-05,2]
[348631943,1736691043102,-500.0,9.97e-05,2]
[348631944,1736691043111,-500.0,9.97e-05,2]
[348631945,1736691043120,-504.85146311,9.97e-05,2]
[348631946,1736691043129,-500.0,9.97e-05,2]
[348631947,1736691043138,-500.0,9.97e-05,2]
[348631948,1736691043147,-500.0,9.97e-05,2]
[348631949,1736691043156,-500.0,9.97e-05,2]
[348631950,1736691043165,-505.42250622,9.97e-05,2]
[348631951,1736691043174,-500.0,9.97e-05,2]
[348631952,1736691043185,-1049.98,9.97e-05,2]
[348631953,1736691043194,-1472.39,9.97e-05,2]
[348631954,1736691043203,-1472.39,9.97e-05,2]
[348631955,1736691043212,-500.0,9.97e-05,2]
[348631956,1736691043222,-625.07,9.97e-05,2]
[348631957,1736691043231,-500.0,9.97e-05,2]
[348631958,1736691043240,-952.29,9.97e-05,2]
[348631959,1736691043249,-2563.8,9.97e-05,2]
[348631960,1736691043258,-500.0,9.97e-05,2]
[348631961,1736691043267,-3003.03,9.97e-05,2]
[348631962,1736691043276,-500.0,9.97e-05,2]
[348631963,1736691043285,-500.0,9.97e-05,2]
[348631964,1736691043294,-1007.73,9.97e-05,2]
[348631965,1736691043305,-500.0,9.97e-05,2]
[348631966,1736691043314,-500.0,9.97e-05,2]
[348631967,1736691043323,-500.0,9.97e-05,2]
[348631968,1736691043332,-500.0,9.97e-05,2]
[348631969,1736691043341,-500.0,9.97e-05,2]
[348631970,1736691043350,-500.0,9.97e-05,2]
[348631971,1736691043359,-500.0,9.97e-05,2]
[348631972,1736691043368,-500.0,9.97e-05,2]
[348631973,1736691043377,-501.69696957,9.97e-05,2]
[348631974,1736691043386,-765.53,9.97e-05,2]
[348631975,1736691043396,-500.0,9.97e-05,2]
[348631976,1736691043405,-500.0,9.97e-05,2]
[348631977,1736691043415,-500.0,9.97e-05,2]
[348631978,1736691043424,-500.0,9.97e-05,2]
[348631979,1736691043433,-1379.73,9.97e-05,2]
[348631980,1736691043443,-500.0,9.97e-05,2]
[348631981,1736691043453,-500.0,9.97e-05,2]
[348631982,1736691043462,-3500.11,9.97e-05,2]
[348631983,1736691043475,-503.05132885,9.97e-05,2]
[348631984,1736691043485,-500.0,9.97e-05,2]
[348631985,1736691043494,-500.0,9.97e-05,2]
[348631986,1736691043504,-500.0,9.97e-05,2]
[348631988,1736691043512,-500.0,9.97e-05,2]
[348631990,1736691043522,-500.0,9.97e-05,2]
[348631992,1736691043532,-503.37706134,9.97e-05,2]
[348631994,1736691043541,-500.0,9.97e-05,2]
[348631996,1736691043551,-500.0,9.97e-05,2]
[348631998,1736691043563,-500.0,9.97e-05,2]
[348632000,1736691043573,-545.23,9.97e-05,2]
[348632003,1736691043582,-1386.0,9.97e-05,2]
[348632005,1736691043592,-1100.68,9.97e-05,2]
[348632007,1736691043602,-3612.69,9.97e-05,2]
[348632008,1736691043611,-953.71,9.97e-05,2]
[348632009,1736691043620,-1752.99,9.97e-05,2]
[348632010,1736691043631,-2546.32,9.97e-05,2]
[348632011,1736691043640,-1391.19,9.97e-05,2]
[348632012,1736691043650,-1480.46,9.97e-05,2]
[348632013,1736691043659,-1939.35,9.97e-05,2]
[348632014,1736691043668,-6936.34,9.97e-05,2]
[348632015,1736691043678,-6936.34,9.97e-05,2]
[348632016,1736691043688,-6936.34,9.97e-05,2]
[348632017,1736691043697,-1410.54,9.97e-05,2]
[348632018,1736691043706,-500.0,9.97e-05,2]
[348632019,1736691043717,-157.13669251,9.97e-05,2]
[348632020,1736691043726,-200.0,9.97e-05,2]
[348632021,1736691043736,-12809.53831301,9.971e-05,2]
[348632022,1736691043747,-157.13669251,9.972e-05,2]
[348632023,1736691043756,-251.78161891,9.973e-05,2]
[348632024,1736691043766,-157.13669251,9.973e-05,2]
[348632025,1736691043775,-6936.34,9.973e-05,2]
[348632026,1736691043784,-6936.34,9.973e-05,2]
[348632027,1736691043795,-12809.53831301,9.973e-05,2]
[348632028,1736691043804,-12809.53831301,9.973e-05,2]
[348632029,1736691043813,-200.0,9.974e-05,2]
[348632030,1736691043823,-2017.62,9.974e-05,2]
[348632031,1736691043832,-1544.08,9.974e-05,2]
[348632032,1736691043842,-654.764347,9.974e-05,2]
[348632033,1736691043851,-747.840652,9.974e-05,2]
[348632034,1736691043861,-157.994959,9.974e-05,2]
[348632035,1736691043871,-3750.08,9.974e-05,2]
[348632036,1736691043881,-1159.16,9.974e-05,2]
[348632037,1736691043890,-717.74,9.974e-05,2]
[348632038,1736691043900,-648.2,9.974e-05,2]
[348632039,1736691043909,-500.0,9.974e-05,2]
[348632040,1736691043919,-3187.32,9.974e-05,2]
[348632041,1736691043928,-500.0,9.974e-05,2]
[348632042,1736691043937,-1007.96,9.974e-05,2]
[348632043,1736691043947,-2450.04,9.974e-05,2]
[348632044,1736691043956,-1266.08,9.974e-05,2]
[348632045,1736691043966,-647.5,9.974e-05,2]
[348632046,1736691043976,-1059.63,9.974e-05,2]
[348632047,1736691043986,-500.0,9.974e-05,2]
[348632048,1736691043995,-919.57,9.974e-05,2]
[348632049,1736691044004,-1231.32,9.974e-05,2]
[348632050,1736691044014,-875.01,9.974e-05,2]
[348632051,1736691044023,-1382.6,9.974e-05,2]
[348632052,1736691044032,-1644.57,9.974e-05,2]
[348632053,1736691044041,-500.0,9.974e-05,2]
[348632054,1736691044051,-597.27,9.974e-05,2]
[348632055,1736691044060,-500.0,9.974e-05,2]
[348632056,1736691044069,-1143.35,9.974e-05,2]
[348632057,1736691044078,-6936.34,9.974e-05,2]
[348632058,1736691044088,-1153.86,9.974e-05,2]
[348632059,1736691044097,-157.13669251,9.974e-05,2]
[348632060,1736691044106,-4313.64475292,9.974e-05,2]
[348632061,1736691044115,-103106.53840322,9.975e-05,2]
[348632062,1736691044124,-791.83,9.975e-05,2]
[348632063,1736691044134,-818.19,9.975e-05,2]
[348632064,1736691044143,-1218.42,9.975e-05,2]
[348632065,1736691044152,-2421.42,9.975e-05,2]
[348632066,1736691044161,-1459.72,9.975e-05,2]
[348632067,1736691044171,-1611.75,9.975e-05,2]
[348632068,1736691044180,-500.0,9.975e-05,2]
[348632069,1736691044189,-1012.53,9.975e-05,2]
[348632070,1736691044198,-2492.77,9.975e-05,2]
[348632071,1736691044207,-6816.53,9.975e-05,2]
[348632072,1736691044217,-1300.44,9.975e-05,2]
[348632073,1736691044227,-1800.8,9.975e-05,2]
[348632074,1736691044236,-1136.46,9.975e-05,2]
[348632075,1736691044248,-500.0,9.975e-05,2]
[348632076,1736691044257,-157.13669251,9.975e-05,2]
[348632077,1736691044266,-150.0,9.976e-05,2]
[348632078,1736691044276,-150.0,9.976e-05,2]
[348632079,1736691044285,-1160.28520056,9.976e-05,3]
[348632080,1736691044295,-6936.34,9.976e-05,2]
[348632081,1736691044304,-6936.34,9.976e-05,2]
[348632082,1736691044314,-6685.10329494,9.976e-05,2]
[348632083,1736691044323,-3149.033196,9.976e-05,2]
[348632084,1736691044332,-157.13669251,9.977e-05,2]
[348632085,1736691044341,-103106.53840323,9.977e-05,2]
[348632086,1736691044351,-3149.033196,9.977e-05,2]
[348632087,1736691044360,-4313.64475292,9.977e-05,2]
[348632088,1736691044369,-157.13669251,9.978e-05,2]
[348632089,1736691044541,-6936.34,9.978e-05,2]
[348632090,1736691044551,-6685.10329494,9.979e-05,2]
[348632091,1736691044563,-157.13669251,9.979e-05,2]
[348632092,1736691044573,-4313.64475292,9.98e-05,2]
[348632093,1736691044583,-157.13669251,9.98e-05,2]
[348632094,1736691044593,-3149.033196,9.981e-05,2]
[348632095,1736691044602,-3149.033196,9.982e-05,2]
[348632096,1736691044612,-157.13669251,9.982e-05,2]
[348632097,1736691044621,-3149.033196,9.982e-05,2]
[348632098,1736691044631,-157.13669251,9.983e-05,2]
[348632099,1736691044641,-6936.34,9.983e-05,2]
[348632100,1736691044650,-6936.34,9.983e-05,2]
[348632101,1736691044659,-5443.265,9.984e-05,2]
[348632102,1736691044669,-167.728,9.984e-05,2]
[348632103,1736691044679,-500.0,9.984e-05,2]
[348632104,1736691044688,-117902.26886279,9.984e-05,2]
[348632105,1736691044698,-150.0,9.984e-05,2]
[348632106,1736691044707,-6936.34,9.984e-05,2]
[348632107,1736691044718,-6936.34,9.984e-05,2]
[348632108,1736691044728,-6936.34,9.984e-05,2]
[348632109,1736691044737,-157.13669251,9.984e-05,2]
[348632110,1736691044747,-3149.033196,9.984e-05,2]
[348632111,1736691044757,-153880.38259379,9.985e-05,2]
[348632112,1736691044766,-200.0,9.985e-05,2]
[348632113,1736691044776,-103106.53840323,9.985e-05,2]
[348632114,1736691044785,-2000.0,9.985e-05,2]
[348632115,1736691044794,-200.0,9.985e-05,2]
[348632116,1736691044803,-200.0,9.985e-05,2]
[348632117,1736691044813,-157.13669251,9.985e-05,2]
[348632118,1736691044822,-40110.61976963,9.986e-05,2]
[348632119,1736691044832,-103106.53840322,9.986e-05,2]
[348632120,1736691044841,-103106.53840323,9.986e-05,2]
[348632121,1736691044851,-12809.53831301,9.986e-05,2]
[348632122,1736691044861,-150.0,9.986e-05,2]
[348632123,1736691044871,-103106.53840322,9.986e-05,2]
[348632124,1736691044881,-6685.10329494,9.987e-05,2]
[348632125,1736691044890,-157.13669251,9.987e-05,2]
[348632126,1736691044900,-38428.61493903,9.987e-05,2]
[348632127,1736691044909,-588.13052689,9.987e-05,2]
[348632128,1736691044919,-6936.34,9.987e-05,2]
[348632129,1736691044928,-366.90281155,9.987e-05,2]
[348632130,1736691044938,-157.13669251,9.988e-05,2]
[348632131,1736691044947,-105945.14669629,9.988e-05,2]
[348632132,1736691044957,-6685.10329494,9.988e-05,2]
[348632133,1736691044970,-18894.19917601,9.989e-05,2]
[348632134,1736691044979,-6936.34,9.989e-05,2]
[348632135,1736691044989,-6936.34,9.989e-05,2]
[348632136,1736691044998,-6936.34,9.989e-05,2]
[348632137,1736691045008,-105945.14669629,9.989e-05,2]
[348632138,1736691045017,-18894.19917601,9.989e-05,2]
[348632139,1736691045026,-157.13669251,9.989e-05,2]
[348632140,1736691045036,-200.0,9.989e-05,2]
[348632141,1736691045045,-960.0,9.989e-05,2]
[348632142,1736691045054,-103106.53840322,9.99e-05,2]
[348632143,1736691045063,-618639.23041936,9.99e-05,2]
[348632144,1736691045073,-103106.53840322,9.99e-05,2]
[348632145,1736691045082,-40110.61976963,9.99e-05,2]
[348632146,1736691045092,-157.13669251,9.99e-05,2]
[348632147,1736691045101,-150.0,9.991e-05,2]
[348632148,1736691045111,-200.0,9.991e-05,2]
[348632149,1736691045120,-103106.53840323,9.991e-05,2]
[348632150,1736691045130,-157.13669251,9.992e-05,2]
[348632151,1736691045139,-737.4721692,9.992e-05,2]
[348632152,1736691045148,-2434.3684686,9.992e-05,2]
[348632153,1736691045158,-1447.1262796,9.992e-05,2]
[348632154,1736691045168,-637.1710533,9.992e-05,2]
[348632155,1736691045177,-317.2848985,9.992e-05,2]
[348632156,1736691045187,-6936.34,9.992e-05,2]
[348632157,1736691045196,-103106.53840322,9.993e-05,2]
[348632158,1736691045206,-105945.14669629,9.993e-05,2]
[348632159,1736691045217,-157.13669251,9.993e-05,2]
[348632160,1736691045226,-103106.53840323,9.993e-05,2]
[348632161,1736691045235,-4313.64475292,9.993e-05,2]
[348632162,1736691045245,-40110.61976963,9.994e-05,2]
[348632163,1736691045254,-200.0,9.994e-05,2]
[348632164,1736691045264,-12809.53831301,9.994e-05,2]
[348632165,1736691045273,-4313.64475292,9.995e-05,2]
[348632166,1736691045282,-6685.10329494,9.995e-05,2]
[348632167,1736691045292,-38428.61493903,9.996e-05,2]
[348632168,1736691045301,-500.0,9.996e-05,2]
[348632169,1736691045311,-150.0,9.996e-05,2]
[348632170,1736691045320,-6936.34,9.996e-05,2]
[348632171,1736691045329,-6936.34,9.996e-05,2]
[348632172,1736691045339,-6936.34,9.996e-05,2]
[348632173,1736691045348,-6936.34,9.996e-05,2]
[348632174,1736691045358,-6936.50429767,9.996e-05,2]
[348632175,1736691045368,-12809.53831301,9.996e-05,2]
[348632176,1736691045377,-105945.14669629,9.997e-05,2]
[348632177,1736691045387,-6685.10329494,9.997e-05,2]
[348632178,1736691045396,-618639.23041936,9.997e-05,2]
[348632179,1736691045406,-150.0,9.998e-05,2]
[348632180,1736691045414,-38428.61493903,9.998e-05,2]
[348632181,1736691045424,-263973.81666181,9.999e-05,2]
[348632182,1736691045433,-1000.0,9.999e-05,2]
[348632183,1736691045443,-1085.74,9.999e-05,2]
[348632184,1736691045452,-500.0,9.999e-05,2]
[348632185,1736691045462,-2525.27,9.999e-05,2]
[348632186,1736691045477,-103106.53840323,9.999e-05,2]
[348632187,1736691045487,-2170.44,9.999e-05,2]
[348632188,1736691045497,-4313.64475292,9.999e-05,2]
[348632189,1736691045506,-18894.19917601,9.999e-05,2]
[348632190,1736691045517,-805017.47081065,0.0001,2]
[348632191,1736691045527,-11420810.61451682,0.0001,2]
[348632192,1736691045536,-1223500.85190464,0.0001,2]
[348632193,1736691045545,-600.0,0.0001,2]
[348632194,1736691045557,-102640.30429605,0.0001,2]
[348632195,1736691045566,-162.80553959,0.0001,2]
[348632196,1736691045575,-1194.08275036,0.0001,2]
[348632197,1736691045584,-4567.10361421,0.0001,2]
[348632198,1736691045594,-1000.0,0.0001,2]
[348632199,1736691045604,-151.0,0.0001,2]
[348632200,1736691045614,-151.0,0.0001,2]
[348632202,1736691045624,-1000.0,0.0001,2]
[348632203,1736691045635,-1000.0,0.0001,2]
[348632205,1736691045644,-1000.0,0.0001,2]
[348632207,1736691045653,-1000.0,0.0001,2]
[348632209,1736691045662,-1000.0,0.0001,2]
[348632211,1736691045671,-1000.0,0.0001,2]
[348632212,1736691045681,-1000.0,0.0001,2]
[348632213,1736691045691,-1000.0,0.0001,2]
[348632214,1736691045702,-1000.0,0.0001,2]
[348632215,1736691045711,-1000.0,0.0001,2]
[348632216,1736691045722,-361.10698041,0.0001,2]
[348632217,1736691045731,-174.04,0.0001,2]
[348632219,1736691045742,-365.0,0.0001,2]
[348632221,1736691045752,-3000.0,0.0001,2]
[348632223,1736691045761,-1000.0,0.0001,2]
[348632225,1736691045770,-22292.20815245,0.0001,2]
[348632226,1736691045779,-500.0,0.0001,2]
[348632227,1736691045789,-179.94247179,0.0001,2]
[348632228,1736691045798,-179.94247179,0.0001,2]
[348632229,1736691045807,-179.94247179,0.0001,2]
[348632230,1736691045817,-150.0,0.00010046,2]
[348632231,1736691045826,-1267.0,0.00010046,2]
[348632232,1736691045836,-2015.0,0.00010046,2]
[348632233,1736691045845,-150.0,0.00010046,2]
[348632234,1736691045855,-566.0,0.00010046,2]
[348632235,1736691045865,-635.0,0.00010046,2]
[348632236,1736691045874,-1861.0,0.00010046,2]
[348632237,1736691045883,-2944.0,0.00010046,2]
[348632238,1736691045893,-896.695,0.00010046,2]
[348632239,1736691045904,-820.0,0.00010046,2]
[348632240,1736691045913,-200.0,0.00010085,2]
[348632241,1736691045923,-235.38,0.000101,2]
[348632242,1736691045933,-311.66,0.00010102,2]
[348632243,1736691045942,-500.0,0.00010133,2]
[348632244,1736691045952,-276.26,0.00010137,2]
[348632245,1736691045962,-452.69,0.00010137,2]
[348632246,1736691045975,-179.88,0.00010137,2]
[348632247,1736691045985,-500.0,0.00010137,2]
[348632248,1736691045994,-150.0,0.00010137,2]
[348632249,1736691046004,-500.0,0.00010137,2]
[348632250,1736691046013,-500.0,0.00010164,2]
[348632251,1736691046023,-150.0,0.00010164,2]
[348632252,1736691046032,-500.0,0.00010164,2]
[348632253,1736691046041,-5807.87019027,0.00010167,4]
[348632254,1736691046051,-379.12016341,0.00010187,2]
[348632255,1736691046060,-550.78564812,0.00010192,2]
[348632256,1736691046069,-150.33578421,0.00010192,2]
[348632257,1736691046079,-500.0,0.00010192,2]
[348632258,1736691046088,-500.0,0.00010219,2]
[348632259,1736691046098,-1381.66,0.00010242,2]
[348632260,1736691046107,-1042.82,0.00010242,2]
[348632261,1736691046117,-985.26,0.00010242,2]
[348632262,1736691046126,-500.0,0.00010242,2]
[348632263,1736691046137,-2494.0,0.00010242,2]
[348632264,1736691046146,-1834.07,0.00010242,2]
[348632265,1736691046156,-3548.52,0.00010242,2]
[348632266,1736691046166,-1415.15,0.00010242,2]
[348632267,1736691046175,-500.0,0.00010242,2]
[348632268,1736691046185,-1392.02,0.00010242,2]
[348632269,1736691046194,-3305.98,0.00010242,2]
[348632270,1736691046204,-1121.39,0.00010242,2]
[348632271,1736691046213,-514.02,0.00010242,2]
[348632272,1736691046226,-1881.48,0.00010242,2]
[348632273,1736691046235,-674.67,0.00010242,2]
[348632274,1736691046244,-941.22,0.00010242,2]
[348632275,1736691046253,-2007.55,0.00010242,2]
[348632276,1736691046263,-613.14,0.00010242,2]
[348632277,1736691046272,-2654.11,0.00010242,2]
[348632278,1736691046281,-762.21,0.00010243,2]
[348632279,1736691046290,-500.0,0.00010243,2]
[348632280,1736691046299,-500.0,0.00010243,2]
[348632281,1736691046308,-789.76,0.00010243,2]
[348632282,1736691046317,-449.33997015,0.00010243,2]
[348632283,1736691046327,-500.0,0.00010243,2]
[348632284,1736691046336,-500.0,0.00010243,2]
[348632285,1736691046345,-500.0,0.00010243,2]
[348632286,1736691046354,-500.0,0.00010243,2]
[348632287,1736691046363,-500.0,0.00010243,2]
[348632288,1736691046372,-500.0,0.00010243,2]
[348632289,1736691046381,-500.0,0.00010243,2]
[348632290,1736691046392,-500.0,0.00010243,2]
[348632291,1736691046401,-500.0,0.00010243,2]
[348632292,1736691046410,-524.46,0.00010243,2]
[348632293,1736691046419,-707.37,0.00010243,2]
[348632294,1736691046428,-538.31,0.00010243,2]
[348632295,1736691046437,-502.83131452,0.00010243,2]
[348632296,1736691046448,-503.87094546,0.00010243,2]
[348632297,1736691046457,-500.0,0.00010243,2]
[348632298,1736691046469,-570.19269183,0.00010243,2]
[348632299,1736691046478,-500.0,0.00010243,2]
[348632300,1736691046488,-500.0,0.00010243,2]
[348632301,1736691046497,-500.0,0.00010243,2]
[348632302,1736691046506,-500.0,0.00010243,2]
[348632303,1736691046515,-1060.81,0.00010243,2]
[348632304,1736691046524,-500.0,0.00010243,2]
[348632305,1736691046534,-500.0,0.00010243,2]
[348632306,1736691046543,-500.0,0.00010243,2]
[348632307,1736691046553,-500.0,0.00010243,2]
[348632308,1736691046564,-500.0,0.00010243,2]
[348632309,1736691046573,-532.11,0.00010243,2]
[348632310,1736691046583,-661.47,0.00010243,2]
[348632311,1736691046592,-874.47,0.00010243,2]
[348632312,1736691046601,-500.0,0.00010243,2]
[348632313,1736691046610,-767.72,0.00010243,2]
[348632314,1736691046619,-918.8,0.00010243,2]
[348632315,1736691046628,-507.65,0.00010243,2]
[348632316,1736691046637,-662.08,0.00010243,2]
[348632317,1736691046646,-539.47,0.00010243,2]
[348632318,1736691046655,-500.0,0.00010243,2]
[348632319,1736691046664,-500.0,0.00010243,2]
[348632320,1736691046673,-500.0,0.00010243,2]
[348632321,1736691046682,-500.0,0.00010243,2]
[348632322,1736691046691,-500.0,0.00010243,2]
[348632323,1736691046701,-500.0,0.00010243,2]
[348632324,1736691046710,-504.4000336,0.00010243,2]
[348632325,1736691046723,-500.0,0.00010243,2]
[348632326,1736691046732,-500.0,0.00010243,2]
[348632327,1736691046741,-500.0,0.00010243,2]
[348632328,1736691046751,-500.0,0.00010243,2]
[348632329,1736691046761,-500.0,0.00010243,2]
[348632330,1736691046770,-512.67,0.00010243,2]
[348632331,1736691046780,-500.0,0.00010243,2]
[348632332,1736691046789,-500.0,0.00010243,2]
[348632333,1736691046799,-500.0,0.00010243,2]
[348632334,1736691046808,-500.0,0.00010243,2]
[348632335,1736691046817,-500.0,0.00010243,2]
[348632336,1736691046827,-500.0,0.00010243,2]
[348632337,1736691046836,-505.75,0.00010243,2]
[348632338,1736691046845,-500.0,0.00010243,2]
[348632339,1736691046853,-730.91,0.00010243,2]
[348632340,1736691046863,-500.0,0.00010243,2]
[348632341,1736691046872,-824.05,0.00010243,2]
[348632342,1736691046882,-637.8,0.00010243,2]
[348632343,1736691046892,-547.4,0.00010243,2]
[348632344,1736691046901,-500.0,0.00010243,2]
[348632345,1736691046911,-534.77,0.00010243,2]
[348632346,1736691046920,-901.85,0.00010243,2]
[348632347,1736691046930,-500.0,0.00010243,2]
[348632348,1736691046939,-886.0,0.00010243,2]
[348632349,1736691046949,-500.0,0.00010243,2]
[348632350,1736691046959,-514.62193062,0.00010243,2]
[348632351,1736691046971,-500.0,0.00010243,2]
[348632352,1736691046980,-500.0,0.00010243,2]
[348632353,1736691046990,-500.0,0.00010243,2]
[348632354,1736691047000,-782.7,0.00010243,2]
[348632355,1736691047009,-855.94,0.00010243,2]
[348632356,1736691047019,-500.0,0.00010243,2]
[348632357,1736691047029,-500.0,0.00010243,2]
[348632358,1736691047039,-518.0,0.00010243,2]
[348632359,1736691047048,-418.54811756,0.00010243,2]
[348632360,1736691047057,-500.0,0.00010243,2]
[348632361,1736691047066,-582.16,0.00010243,2]
[348632362,1736691047075,-500.0,0.00010243,2]
[348632363,1736691047085,-500.0,0.00010243,2]
[348632364,1736691047095,-558.25067831,0.00010243,2]
[348632365,1736691047104,-335.02,0.00010243,2]
[348632366,1736691047114,-500.0,0.00010243,2]
[348632367,1736691047123,-500.0,0.00010243,2]
[348632368,1736691047132,-500.0,0.00010243,2]
[348632369,1736691047142,-500.0,0.00010243,2]
[348632370,1736691047151,-500.0,0.00010243,2]
[348632371,1736691047160,-643.78,0.00010243,2]
[348632372,1736691047169,-500.0,0.00010243,2]
[348632373,1736691047178,-500.0,0.00010243,2]
[348632374,1736691047188,-500.0,0.00010243,2]
[348632375,1736691047198,-1690.54,0.00010243,2]
[348632376,1736691047208,-661.23,0.00010243,2]
[348632377,1736691047220,-574.67,0.00010243,2]
[348632378,1736691047229,-556.62,0.00010243,2]
[348632379,1736691047239,-693.77,0.00010243,2]
[348632380,1736691047248,-571.02,0.00010243,2]
[348632381,1736691047258,-500.0,0.00010243,2]
[348632382,1736691047267,-521.84,0.00010243,2]
[348632383,1736691047276,-504.73258539,0.00010243,2]
[348632384,1736691047286,-974.54,0.00010243,2]
[348632385,1736691047295,-500.0,0.00010243,2]
[348632386,1736691047305,-500.0,0.00010243,2]
[348632387,1736691047314,-521.0,0.00010243,2]
[348632388,1736691047473,-500.0,0.00010243,2]
[348632389,1736691047483,-661.73,0.00010243,2]
[348632390,1736691047493,-502.98,0.00010243,2]
[348632391,1736691047502,-688.18,0.00010243,2]
[348632392,1736691047511,-500.0,0.00010243,2]
[348632393,1736691047521,-500.0,0.00010243,2]
[348632394,1736691047531,-654.36,0.00010243,2]
[348632395,1736691047541,-500.0,0.00010243,2]
[348632396,1736691047551,-500.0,0.00010243,2]
[348632397,1736691047563,-597.73,0.00010243,2]
[348632398,1736691047572,-581.15,0.00010243,2]
[348632399,1736691047581,-826.87,0.00010243,2]
[348632400,1736691047593,-500.0,0.00010243,2]
[348632401,1736691047604,-651.22,0.00010243,2]
[348632402,1736691047618,-500.0,0.00010243,2]
[348632403,1736691047635,-500.0,0.00010243,2]
[348632404,1736691047645,-500.0,0.00010243,2]
[348632405,1736691047655,-889.86,0.00010243,2]
[348632406,1736691047664,-570.46,0.00010243,2]
[348632407,1736691047673,-500.0,0.00010243,2]
[348632408,1736691047682,-500.0,0.00010243,2]
[348632409,1736691047692,-500.0,0.00010243,2]
[348632410,1736691047701,-500.0,0.00010243,2]
[348632411,1736691047713,-543.54,0.00010243,2]
[348632412,1736691047725,-500.0,0.00010243,2]
[348632413,1736691047736,-500.0,0.00010243,2]
[348632414,1736691047745,-500.0,0.00010243,2]